[Event "XLIV Barbera del Valles-A 2022"]
[Site "Barbera del Valles"]
[Date "2022.07.07"]
[Round "4.2"]
[White "Moskalenko, Viktor"]
[Black "Alsina Leal, Daniel"]
[Result "1/2-1/2"]
[ECO "D02"]
[WhiteElo "2457"]
[BlackElo "2525"]
[Annotator "TA"]
[PlyCount "133"]
[EventDate "2022.07.04"]
[EventType "swiss"]
[EventCountry "ESP"]
[SourceTitle "playchess.com"]
[Source "ChessBase"]
[SourceQuality "1"]
[TimeControl "5400+30"]

{[%evp 9,133,0,10,23,33,8,33,35,36,34,59,36,45,41,44,50,45,34,39,14,27,11,29,26,39,29,27,34,46,64,55,0,0,0,0,0,0,0,0,0,0,0,0,-12,0,-12,-12,-18,0,-8,0,-13,-11,-41,0,0,0,0,0,0,0,0,0,0,0,0,0,0,0,0,0,0,0,0,0,0,0,0,0,0,0,0,0,0,0,0,0,0,0,0,0,0,0,0,0,0,0,0,0,0,0,0,0,0,0,0,0,0,0,0,0,0,0,0,0,0,0,0,0,0,0,0,0,0,0,0]} 1. d4 {[%emt 0:00:40]} d5 {[%emt 0:00:07]} 2. Bf4 {[%emt 0:04:13]} c5 {[%emt 0:00:12]} 3. e3 {[%emt 0:00:05]} Nc6 {[%emt 0:00:08]} 4. Nf3 {[%emt 0:00:12]} Nf6 {[%emt 0:00:23]} 5. Nbd2 {[%emt 0:00:17]} Nh5 {[%emt 0:00:40]} 6. dxc5 {[%emt 0:02:45] D02: 1 d4 d5 2 Nf3 sidelines, including 2...Nf6 3 g3 and 2...Nf6 3 Bf4.} Nxf4 {[%emt 0:00:39]} 7. exf4 {[%emt 0:00:02]} g6 {[%emt 0:00:25]} 8. c3 {[%emt 0:01:59] White is slightly better.} Bh6 {[%emt 0:00:28]} 9. g3 {[%emt 0:00:22]} Bg7 {[%emt 0:00:24]} 10. Bg2 {[%emt 0:13:02]} O-O {[%emt 0:05:27] [#]} 11. O-O $146 {[%emt 0:00:57]} ({Predecessor:} 11. Nb3 a5 12. a4 b6 13. Nfd4 Nxd4 14. Nxd4 e6 15. cxb6 Qxb6 16. Nb5 Ba6 17. Qd3 {½-½ (29) Damjanovic,V (2393)-Perunovic,M (2543) Paracin 2022}) 11... b6 {[%emt 0:21:54]} 12. cxb6 {[%emt 0:05:25]} Qxb6 {[%emt 0:00:21]} 13. Nb3 {[%emt 0:01:47]} Rd8 {[%emt 0:04:20]} 14. Qd2 {[%emt 0:11:17]} Rb8 {[%emt 0:03:00]} 15. Rfe1 {[%emt 0:01:22]} a5 {[%emt 0:31:13]} 16. Nbd4 {[%emt 0:28:55]} Bxd4 {[%emt 0:07:51]} 17. Nxd4 {[%emt 0:01:05]} Nxd4 {[%emt 0:00:05]} 18. cxd4 {[%emt 0:00:14]} Qxb2 {[%emt 0:01:47]} 19. Qxa5 {[%emt 0:00:53]} Be6 {[%emt 0:00:57]} 20. Rad1 {[%emt 0:04:12]} ({White should play} 20. a4 $1 $14) 20... Ra8 $11 {[%emt 0:04:10]} 21. Rd2 {[%emt 0:00:43]} Rxa5 {[%emt 0:01:17]} 22. Rxb2 {[%emt 0:00:02]} Ra4 {[%emt 0:01:27]} 23. Rd2 {[%emt 0:06:25]} Rb8 {[%emt 0:03:34]} 24. h3 {[%emt 0:02:22]} Rbb4 {[%emt 0:00:24]} 25. Red1 {[%emt 0:00:12]} h5 {[%emt 0:00:55]} 26. Kh2 {[%emt 0:01:07]} Ra5 {[%emt 0:01:28][%mdl 1024] Black has compensation.} 27. Bf3 {[%emt 0:01:22]} Ra3 {[%emt 0:00:49]} 28. Bg2 {[%emt 0:02:42]} Ra5 {[%emt 0:00:25]} 29. Bf3 {[%emt 0:03:18]} Ra3 {[%emt 0:00:10]} 30. Be2 {[%emt 0:00:14]} Bf5 {[%emt 0:01:09][%cal Oh5h4]} 31. Ra1 {[%emt 0:01:13]} Rb1 {[%emt 0:03:03]} (31... h4 $5) 32. Rxb1 {[%emt 0:01:28] The position is equal.} Bxb1 {[%emt 0:00:37][%mdl 4096] Endgame KRB-KRB} 33. Rb2 {[%emt 0:01:20]} Bxa2 {[%emt 0:00:15]} 34. f5 {[%emt 0:00:28]} Bb3 {[%emt 0:04:43]} 35. fxg6 {[%emt 0:00:28]} fxg6 {[%emt 0:00:04]} 36. Kg2 {[%emt 0:02:33]} Kf7 {[%emt 0:00:21]} 37. Rd2 {[%emt 0:01:24]} Ra4 {[%emt 0:00:55]} 38. Kf3 {[%emt 0:00:28]} Bc4 {[%emt 0:00:34]} 39. Bxc4 {[%emt 0:00:11]} Rxc4 {[%emt 0:00:08] KR-KR} 40. Ke3 {[%emt 0:00:18]} g5 {[%emt 0:00:50]} 41. Ra2 {[%emt 0:01:50]} h4 {[%emt 0:00:42]} 42. gxh4 {[%emt 0:00:16]} gxh4 {[%emt 0:00:38]} 43. f3 {[%emt 0:00:14]} Kf6 {[%emt 0:00:35]} 44. Kd3 {[%emt 0:00:31]} Rc1 {[%emt 0:01:25]} 45. Ke3 {[%emt 0:01:26]} Rh1 {[%emt 0:00:18]} 46. Ra6+ {[%emt 0:00:12]} e6 {[%emt 0:00:46]} 47. Ra8 {[%emt 0:00:23]} Rxh3 {[%emt 0:00:21]} 48. Rh8 {[%emt 0:00:15]} Rh1 {[%emt 0:00:44]} 49. Kf4 {[%emt 0:00:18]} h3 {[%emt 0:00:50]} 50. Rh6+ {[%emt 0:00:18]} Kf7 {[%emt 0:00:21]} 51. Rh4 {[%emt 0:00:51]} Kg6 {[%emt 0:00:37]} 52. Kg3 {[%emt 0:00:35]} Kg5 {[%emt 0:00:52]} 53. Rg4+ $1 {[%emt 0:00:29]} Kf5 {[%emt 0:00:12] [#] ...e5 is the strong threat.} 54. Rf4+ $1 {[%emt 0:00:10]} Kg5 {[%emt 0:00:04]} 55. Rg4+ $1 {[%emt 0:00:03]} Kf6 {[%emt 0:00:03] And now ...e5 would win.} 56. Rf4+ {[%emt 0:01:05]} Ke7 {[%emt 0:00:06]} 57. Rh4 {[%emt 0:00:01]} Kd6 {[%emt 0:01:58]} 58. Rxh3 {[%emt 0:00:10]} Rxh3+ {[%emt 0:00:33]} 59. Kxh3 {[%emt 0:00:02]} e5 {[%emt 0:00:31]} 60. dxe5+ {[%emt 0:00:11]} Kxe5 {[%emt 0:00:04] KP-KP} 61. Kg3 {[%emt 0:00:03]} Kd4 {[%emt 0:00:40]} 62. Kf2 {[%emt 0:00:30]} Kc3 {[%emt 0:00:42]} 63. f4 {[%emt 0:00:38]} d4 {[%emt 0:00:14]} 64. f5 {[%emt 0:00:06]} d3 {[%emt 0:00:04]} 65. f6 $1 {[%emt 0:00:09]} d2 {[%emt 0:00:03]} 66. f7 $1 {[%emt 0:00:05]} (66. Ke2 {leads to mate.} Kc2 67. f7 d1=Q+ 68. Kf2 Qd4+ 69. Kf3 Qf6+ 70. Ke4 Qxf7 71. Ke5 Kd3 72. Kd6 Kd4 73. Kc6 Qe7 74. Kb6 Qd7 75. Ka5 Qb7 76. Ka4 Kc4 77. Ka5 Qb5#) 66... d1=Q {[%emt 0:00:03] [#] ( -> ...Qc2+)} 67. f8=Q {[%emt 0:00:09] Weighted Error Value: White=0.04 (flawless) /Black=0.04 (flawless)} 1/2-1/2

[Event "XLIV Barbera del Valles-A 2022"]
[Site "Barbera del Valles"]
[Date "2022.07.07"]
[Round "4.3"]
[White "Gkoumas, Georgios"]
[Black "Narciso Dublan, Marc"]
[Result "1/2-1/2"]
[ECO "B01"]
[WhiteElo "2427"]
[BlackElo "2461"]
[Annotator "TA"]
[PlyCount "64"]
[EventDate "2022.07.04"]
[EventType "swiss"]
[EventCountry "ESP"]
[SourceTitle "playchess.com"]
[Source "ChessBase"]
[SourceQuality "1"]
[TimeControl "5400+30"]

{[%evp 13,64,32,24,10,17,14,25,40,48,46,66,48,55,57,58,64,56,42,48,59,59,44,42,46,56,58,53,62,52,55,70,35,48,43,36,-32,17,21,11,0,0,0,0,0,0,0,0,0,0,0,0,0,0]} 1. e4 {[%emt 0:00:04]} d5 {[%emt 0:00:15]} 2. exd5 {[%emt 0:00:19]} Qxd5 {[%emt 0:00:11]} 3. Nc3 {[%emt 0:00:11]} Qa5 {[%emt 0:00:12]} 4. d4 {[%emt 0:00:34]} Nf6 {[%emt 0:00:11]} 5. Bc4 {[%emt 0:00:21]} Bg4 {[%emt 0:00:54]} 6. Nge2 {[%emt 0:00:13]} e6 {[%emt 0:00:33]} 7. f3 {[%emt 0:03:22]} Bf5 {[%emt 0:00:59]} 8. g4 {[%emt 0:00:05] B01: Scandinavian Defence.} Bg6 {[%emt 0:00:21]} 9. h4 {[%emt 0:00:05] [#] Threatens to win with h5.} h6 {[%emt 0:03:21]} (9... h5 $5 {[%cal Rh5g4]}) 10. Nf4 {[%emt 0:02:39] White has an edge.} Bh7 {[%emt 0:00:41]} 11. Bd2 {[%emt 0:07:30][%cal Oc3d5] Strongly threatening Ncd5!} Qb6 {[%emt 0:02:10][%csl LRb2,LRd4]} 12. d5 {[%emt 0:06:53][%cal Rd5e6] Prevents Nc6. White is more active.} e5 {[%emt 0:03:21]} 13. Qe2 {[%emt 0:01:17]} Nbd7 {[%emt 0:00:17]} 14. O-O-O {[%emt 0:07:38][%cal Od5d6] And now d6! would win.} O-O-O {[%emt 0:01:41] [#]} 15. Nh3 $146 {[%emt 0:10:16]} ({Predecessor:} 15. Nd3 Qd4 16. Bb3 e4 17. fxe4 Nxe4 18. Nxe4 Qxe4 19. Qf2 Qxg4 20. Qxa7 Bxd3 21. Qa8+ {0-1 (35) Paehtz,T (2459)-Docx,S (2279) Belgium 2002}) 15... Bc5 {[%emt 0:17:08]} 16. Na4 {[%emt 0:07:01]} Qd6 {[%emt 0:00:09]} 17. Nxc5 {[%emt 0:00:03]} Nxc5 {[%emt 0:03:00]} 18. Be3 {[%emt 0:00:16]} Nfd7 {[%emt 0:11:00]} 19. a3 {[%emt 0:02:54]} f5 {[%emt 0:05:19]} 20. gxf5 {[%emt 0:00:27]} Bxf5 {[%emt 0:00:18]} 21. Nf2 {[%emt 0:00:08]} Rhf8 {[%emt 0:07:36]} 22. Qd2 {[%emt 0:01:49]} b6 {[%emt 0:08:18]} 23. b4 {[%emt 0:00:49]} Nb7 {[%emt 0:00:14]} 24. Be2 {[%emt 0:11:05]} (24. Ne4 $14 Bxe4 25. fxe4) 24... c5 {[%emt 0:07:28]} (24... Nf6 $15) 25. Rhg1 {[%emt 0:15:55] The position is equal.} Rf7 {[%emt 0:12:24]} 26. Bb5 {[%emt 0:06:11]} Nf6 {[%emt 0:10:19]} 27. Bc6 $36 {[%emt 0:01:11][%mdl 2048] White has some pressure.} cxb4 {[%emt 0:01:11]} 28. axb4 {[%emt 0:00:42]} Na5 {[%emt 0:01:22]} 29. bxa5 {[%emt 0:11:33]} Qa3+ {[%emt 0:00:06]} 30. Kb1 {[%emt 0:00:03]} Qb3+ {[%emt 0:00:40]} 31. Kc1 {[%emt 0:00:10]} Qa3+ {[%emt 0:00:22]} 32. Kb1 {[%emt 0:00:05]} Qb3+ {[%emt 0:01:03] Weighted Error Value: White=0.08 (flawless) /Black=0.06 (flawless)} 1/2-1/2

[Event "XLIV Barbera del Valles-A 2022"]
[Site "Barbera del Valles"]
[Date "2022.07.07"]
[Round "4.4"]
[White "Vergara Jofre, Felipe"]
[Black "Cuartas, Jaime Alexander"]
[Result "0-1"]
[ECO "B76"]
[WhiteElo "2151"]
[BlackElo "2513"]
[Annotator "TA"]
[PlyCount "96"]
[EventDate "2022.07.04"]
[EventType "swiss"]
[EventCountry "ESP"]
[SourceTitle "playchess.com"]
[Source "ChessBase"]
[SourceQuality "1"]
[TimeControl "5400+30"]

{[%evp 35,96,36,37,35,72,41,82,82,94,97,128,89,197,211,207,191,230,200,201,191,236,232,238,237,295,301,301,35,42,81,75,51,4,0,0,0,0,-14,-10,-291,-276,-285,-277,-264,-218,-29973,-29974,-29974,-29975,-29975,-29976,-29976,-29977,-29977,-29978,-29978,-29979,-29979,-29980,-29980,-29981,-29981,-29981]} 1. e4 {[%emt 0:02:42]} c5 {[%emt 0:00:10]} 2. Nf3 {[%emt 0:00:11]} Nc6 {[%emt 0:00:06]} 3. d4 {[%emt 0:00:04]} cxd4 {[%emt 0:00:04]} 4. Nxd4 {[%emt 0:00:01]} Nf6 {[%emt 0:00:10]} 5. Nc3 {[%emt 0:00:12]} d6 {[%emt 0:00:11]} 6. f3 {[%emt 0:02:17]} g6 {[%emt 0:01:11]} 7. Be3 {[%emt 0:00:16][%cal Bc1e3,Be3d4,Bd4c5][%mdl 32]} Bg7 {[%emt 0:00:06]} 8. Qd2 {[%emt 0:01:35]} O-O {[%emt 0:00:36]} 9. O-O-O {[%emt 0:01:01]} d5 {[%emt 0:00:25]} 10. exd5 {[%emt 0:01:01]} Nxd5 {[%emt 0:00:10]} 11. Nxc6 {[%emt 0:00:06]} bxc6 {[%emt 0:00:04]} 12. Bd4 {[%emt 0:00:09]} e5 {[%emt 0:00:24]} 13. Bc5 {[%emt 0:00:04]} Be6 {[%emt 0:00:04]} 14. Ne4 {[%emt 0:05:59]} Re8 {[%emt 0:00:18]} 15. g4 {[%emt 0:17:33]} h6 {[%emt 0:07:20]} 16. h4 {[%emt 0:04:03]} Qc7 {[%emt 0:09:10]} 17. g5 {[%emt 0:10:17]} h5 {[%emt 0:00:28]} 18. Bc4 {[%emt 0:15:47]} Red8 {[%emt 0:03:12]} 19. Qf2 {[%emt 0:01:45] B76: Sicilian Dragon: Yugoslav Attack, 9 g4 and 9 0-0-0.} Kh8 {[%emt 0:10:13]} 20. Rd2 {[%emt 0:12:50]} a5 {[%emt 0:15:46]} 21. a4 {[%emt 0:03:27] White is better.} Rab8 {[%emt 0:05:24]} 22. Rhd1 {[%emt 0:01:04][%cal Bh1d1,Bd1e1,Be1e5][%mdl 32]} Bf8 {[%emt 0:10:17]} 23. b3 {[%emt 0:09:03]} Be7 {[%emt 0:04:20]} (23... Bg7 $16 {might work better.}) 24. Bxe7 $18 {[%emt 0:00:34]} Qxe7 {[%emt 0:03:22]} 25. Qc5 {[%emt 0:00:12] [#] Against Qa3+} Re8 $146 {[%emt 0:00:51]} ({Predecessor:} 25... Qxc5 26. Nxc5 Re8 27. Re1 Rb4 28. Rxe5 Rxc4 29. bxc4 Nb6 {1-0 (38) Zivkovic,V (2255)-Milosevic,S Pula 1996}) 26. Qxe7 {[%emt 0:02:30]} (26. Qxa5 $2 Qa3+ 27. Kb1 Ra8 $19) 26... Rxe7 {[%emt 0:00:07]} 27. Re1 {[%emt 0:03:05] Prevents Ne3.} Nf4 {[%emt 0:10:19]} 28. Bxe6 {[%emt 0:01:12]} Nxe6 {[%emt 0:01:53]} 29. Nd6 {[%emt 0:00:48]} Rb4 {[%emt 0:01:12]} 30. Nc4 {[%emt 0:01:23]} ({Don't play} 30. Rxe5 $6 Rxh4 31. Nxf7+ (31. Rxa5 Kh7 $14) 31... Rxf7 $18) 30... Nc5 {[%emt 0:03:01]} 31. Rxe5 $2 {[%emt 0:02:41]} ({Weaker is} 31. Nxa5 Rxh4 32. Rd6 (32. Nxc6 Rc7 $16) 32... e4 $16) ({White should play} 31. Rd6 $18) 31... Nxb3+ $1 $14 {[%emt 0:00:06][%mdl 64] Remove Defender} 32. cxb3 {[%emt 0:01:04]} Rxc4+ {[%emt 0:00:05][%mdl 64] Remove Defender} 33. bxc4 {[%emt 0:00:10]} Rxe5 $18 {[%emt 0:00:05][%mdl 4096] Endgame KR-KR} 34. Rd4 {[%emt 0:01:40]} Re3 {[%emt 0:00:08]} 35. Rf4 {[%emt 0:00:19]} Kg7 {[%emt 0:00:22]} 36. Kb2 {[%emt 0:00:33]} Re6 {[%emt 0:01:34] Strongly threatening ...c5.} 37. Kc3 $2 {[%emt 0:00:42][%mdl 8192]} (37. Rd4 $1 $11) 37... c5 $1 $19 {[%emt 0:00:25]} 38. Kd3 {[%emt 0:00:26] [#]} f5 {[%emt 0:00:55] Prevents Re4. ( -> ...Rd6+)} 39. gxf6+ {[%emt 0:00:03]} Rxf6 {[%emt 0:00:07]} 40. Rxf6 {[%emt 0:01:07]} (40. Re4 $19 Rxf3+ 41. Ke2) 40... Kxf6 {[%emt 0:00:14] KP-KP. Black mates.} 41. Ke4 {[%emt 0:00:13]} g5 {[%emt 0:00:04]} 42. hxg5+ {[%emt 0:00:19]} Kxg5 {[%emt 0:00:04] K3P-K3P} 43. Ke5 {[%emt 0:00:01]} h4 {[%emt 0:02:41]} 44. f4+ {[%emt 0:00:01] [#]} Kh6 $1 {[%emt 0:00:10]} 45. Ke4 {[%emt 0:01:57]} h3 {[%emt 0:00:59]} 46. Kf3 {[%emt 0:00:11]} Kg6 {[%emt 0:00:06]} 47. Kg3 {[%emt 0:00:10]} Kf5 {[%emt 0:00:05]} 48. Kxh3 {[%emt 0:00:08]} Kxf4 {[%emt 0:00:04] What a bad dream for White.  Weighted Error Value: White=0.48/Black=0.16 (very precise)} 0-1

[Event "XLIV Barbera del Valles-A 2022"]
[Site "Barbera del Valles"]
[Date "2022.07.07"]
[Round "4.5"]
[White "Barros, Raul Junior"]
[Black "Sanchez, Sebastian Felipe"]
[Result "0-1"]
[ECO "A08"]
[WhiteElo "2174"]
[BlackElo "2440"]
[Annotator "TA"]
[PlyCount "92"]
[EventDate "2022.07.04"]
[EventType "swiss"]
[EventCountry "ESP"]
[SourceTitle "playchess.com"]
[Source "ChessBase"]
[SourceQuality "1"]
[TimeControl "5400+30"]

{[%evp 15,92,-16,8,0,0,-4,0,-2,0,-22,-16,-20,-6,-20,-8,-25,-14,-15,-18,-21,-18,-19,-4,-33,-30,-70,-61,-78,-65,-87,-81,-102,-86,-87,-70,-98,-100,-111,-94,-112,-67,-71,-71,-98,-99,-123,-130,-118,-120,-116,-102,-281,-310,-289,-211,-276,-217,-279,-262,-349,-210,-212,-197,-189,-177,-496,-501,-659,-633,-735,-691,-1099,-1072,-985,-691,-668,-664,-822,-809]} 1. e4 {[%emt 0:00:57]} e6 {[%emt 0:00:10]} 2. Qe2 {[%emt 0:00:33]} c5 {[%emt 0:00:22]} 3. Nf3 {[%emt 0:00:20]} Nc6 {[%emt 0:00:08]} 4. g3 {[%emt 0:00:35]} g6 {[%emt 0:00:34]} 5. Bg2 {[%emt 0:00:19]} Bg7 {[%emt 0:00:07]} 6. c3 {[%emt 0:00:34]} Nge7 {[%emt 0:00:39]} 7. d3 {[%emt 0:00:34]} d5 {[%emt 0:02:50]} 8. O-O {[%emt 0:05:16]} b6 {[%emt 0:03:15]} 9. Na3 {[%emt 0:03:53] is the legacy move (9.Re1). A08: King's Indian Attack.} O-O {[%emt 0:01:39]} 10. exd5 {[%emt 0:01:46]} Nxd5 {[%emt 0:03:57]} 11. Nc4 {[%emt 0:03:11] The position is equal.} Bb7 {[%emt 0:04:43]} 12. Bg5 {[%emt 0:06:39]} Qd7 {[%emt 0:05:58] [#]} 13. Qd2 $146 {[%emt 0:01:36]} ({Predecessor:} 13. a4 f6 14. Bh3 Rfe8 15. Bd2 Nc7 16. Bf4 Nd5 17. Bc1 Qc7 18. Re1 e5 19. Bd2 {0-1 (77) Revilla Alvarez,A (2179)-Ragolta Franco,E (2213) Nueva Gerona 2009}) 13... Rfe8 {[%emt 0:12:34]} 14. Rad1 {[%emt 0:12:27]} e5 {[%emt 0:04:43]} 15. Bh6 {[%emt 0:03:54]} Rad8 {[%emt 0:02:35]} 16. Bxg7 {[%emt 0:00:50]} Kxg7 {[%emt 0:00:04]} 17. Rfe1 {[%emt 0:00:16][%cal Rc4e5]} f6 {[%emt 0:02:16]} 18. Qc2 {[%emt 0:04:15]} Re7 {[%emt 0:06:08][%cal Be8e7,Be7d7,Bd7d6,Bd6e6][%mdl 32]} 19. Re2 {[%emt 0:09:45]} Qc7 {[%emt 0:03:01]} 20. Ne3 {[%emt 0:05:36]} Red7 {[%emt 0:01:53]} 21. Red2 {[%emt 0:05:40]} Nce7 {[%emt 0:11:10]} 22. Nf1 {[%emt 0:07:30]} Nf5 {[%emt 0:03:04]} 23. h3 {[%emt 0:12:19]} h5 {[%emt 0:07:05]} 24. h4 {[%emt 0:00:38]} Rd6 {[%emt 0:02:17]} 25. Qa4 {[%emt 0:05:56]} Bc6 {[%emt 0:01:46][%cal Bb7c6,Bc6b5,Bb5a4][%mdl 32]} 26. Qc4 {[%emt 0:00:35]} Qd7 {[%emt 0:04:29]} 27. Ne1 {[%emt 0:04:16]} Re6 {[%emt 0:05:45]} 28. a3 {[%emt 0:02:10]} Rd6 {[%emt 0:01:21] 0x0.001b6a688008dp-1022s more active pieces. The white rooks are badly placed.} 29. Nc2 {[%emt 0:00:45]} Bb5 {[%emt 0:01:06]} 30. Qe4 {[%emt 0:00:13]} Ba4 {[%emt 0:02:03]} 31. Rc1 {[%emt 0:02:02]} Nde7 {[%emt 0:00:22]} 32. Ne1 {[%emt 0:00:24]} Bb5 {[%emt 0:06:20]} 33. c4 $2 {[%emt 0:00:43] [#] White does not recover from this.} (33. Ra1 $17) 33... Bc6 $19 {[%emt 0:00:13]} 34. Qe2 {[%emt 0:00:09]} Bxg2 {[%emt 0:01:02]} 35. Kxg2 {[%emt 0:00:11]} Nc6 {[%emt 0:00:51][%cal Be7c6,Bc6d4,Bd4f5,Bf5h4,Bh4f5,Bf5h6,Bh6g4][%mdl 32]} 36. Ne3 {[%emt 0:00:27]} Ncd4 {[%emt 0:00:15]} 37. Qd1 {[%emt 0:00:05]} Qb7+ {[%emt 0:00:49]} 38. Kg1 {[%emt 0:00:14]} Nxe3 {[%emt 0:00:45]} 39. fxe3 {[%emt 0:00:01]} Nf5 $36 {[%emt 0:00:04][%mdl 2048] Keeping White busy.} 40. Kf2 {[%emt 0:01:23]} (40. e4 {was the crucial defense.} Nd4 41. b4) 40... e4 {[%emt 0:00:09] Black is clearly winning.} ({But not} 40... Qh1 $2 41. Qf3 Qh2+ 42. Qg2 Qxg2+ 43. Kxg2 $19) 41. g4 {[%emt 0:01:04]} Nxh4 {[%emt 0:01:21]} 42. gxh5 {[%emt 0:00:01]} Qd7 {[%emt 0:00:08] [#] Prevents Qg4. Threatens to win with ...Rh8.} 43. Kg3 {[%emt 0:01:15]} Nf5+ {[%emt 0:00:07]} 44. Kf2 {[%emt 0:00:08]} Nh6 {[%emt 0:00:11] White must now prevent ...Qh3.} 45. Kg1 {[%emt 0:00:59]} Qh3 {[%emt 0:00:31] aiming for ...Ng4.} 46. Qe2 {[%emt 0:00:34]} Ng4 {[%emt 0:00:46] Against Qf2.  Weighted Error Value: White=0.47/Black=0.22 (precise)} 0-1

[Event "XLIV Barbera del Valles-A 2022"]
[Site "Barbera del Valles"]
[Date "2022.07.07"]
[Round "4.6"]
[White "Lorscheid, Gerhard"]
[Black "Munoz, Miguel"]
[Result "1/2-1/2"]
[ECO "A35"]
[WhiteElo "2126"]
[BlackElo "2408"]
[Annotator "TA"]
[PlyCount "51"]
[EventDate "2022.07.04"]
[EventType "swiss"]
[EventCountry "ESP"]
[SourceTitle "playchess.com"]
[Source "ChessBase"]
[SourceQuality "1"]
[TimeControl "5400+30"]

{[%evp 9,51,51,81,65,76,80,85,84,73,72,75,22,15,13,15,0,25,0,15,5,28,18,37,37,39,41,38,41,30,41,22,25,32,31,33,34,34,32,70,23,48,45,52,56]} 1. Nf3 {[%emt 1:31:00]} c5 {[%emt 1:31:00]} 2. c4 {[%emt 0:00:30]} Nc6 {[%emt 0:00:30]} 3. Nc3 {[%emt 0:00:30]} g6 {[%emt 0:00:30]} 4. d4 {[%emt 0:00:30]} Bg7 {[%emt 0:00:30]} 5. d5 {[%emt 0:00:30]} Na5 {[%emt 0:00:30]} 6. e4 {[%emt 0:00:30] White is more active. A35: Symmetrical English: 2 Nc3 Nc6 3 Nf3.} d6 {[%emt 0:00:30]} 7. Bd3 {[%emt 0:00:30]} Nf6 {[%emt 0:00:30]} 8. O-O {[%emt 0:00:30] White is better.} O-O {[%emt 0:00:30]} 9. h3 {[%emt 0:00:30]} e5 {[%emt 0:00:30]} 10. dxe6 {[%emt 0:00:30]} (10. Bg5 $16) 10... fxe6 $11 {[%emt 0:00:30] [#]} 11. e5 $146 {[%emt 0:00:30]} ({Predecessor:} 11. Bg5 e5 12. Qd2 Be6 13. b3 Qd7 14. Rfd1 Nc6 15. Nd5 Nh5 16. Be2 Rf7 17. Nh2 {0-1 (31) Ribera Nebot,J (2074)-Munoz Pantoja,M (2401) Barcelona 2015}) 11... dxe5 {[%emt 0:00:30]} 12. Bg5 {[%emt 0:00:30]} Nc6 {[%emt 0:00:30]} 13. Re1 {[%emt 0:00:30]} Qc7 {[%emt 0:00:30]} 14. Qd2 {[%emt 0:00:30]} Nh5 {[%emt 0:00:30]} 15. Qe3 {[%emt 0:00:30]} Nf4 {[%emt 0:00:30]} 16. Bxf4 {[%emt 0:00:30]} Rxf4 {[%emt 0:00:30]} 17. Qxc5 {[%emt 0:00:30]} b6 {[%emt 0:00:30]} 18. Nb5 {[%emt 0:00:30]} bxc5 {[%emt 0:00:30]} 19. Nxc7 {[%emt 0:00:30] Pair of Knights!} Rb8 {[%emt 0:00:30]} 20. Nb5 {[%emt 0:00:30]} Bb7 {[%emt 0:00:30] [#] ...Nb4 is the strong threat.} 21. Ng5 {[%emt 0:00:30]} Nd4 {[%emt 0:00:30]} 22. Nxd4 {[%emt 0:00:30]} Rxd4 {[%emt 0:00:30]} 23. Rad1 {[%emt 0:00:30]} e4 {[%emt 0:00:30]} 24. Bxe4 {[%emt 0:00:30]} (24. Bc2 $1 $14) 24... Bxe4 {[%emt 0:00:30]} 25. Nxe4 {[%emt 0:00:30]} Rxc4 {[%emt 0:00:30]} 26. b3 {[%emt 0:00:30] Weighted Error Value: White=0.10 (very precise) /Black=0.10 (very precise)} 1/2-1/2

[Event "XLIV Barbera del Valles-A 2022"]
[Site "Barbera del Valles"]
[Date "2022.07.07"]
[Round "4.7"]
[White "Gourav Nigam"]
[Black "Valenzuela Gomez, Fernando"]
[Result "0-1"]
[ECO "C91"]
[WhiteElo "1803"]
[BlackElo "2373"]
[Annotator "RC"]
[PlyCount "90"]
[EventDate "2022.07.04"]
[EventType "swiss"]
[EventCountry "ESP"]
[SourceTitle "playchess.com"]
[Source "ChessBase"]
[SourceQuality "1"]
[TimeControl "5400+30"]

1. e4 {[%emt 0:00:05]} e5 {[%emt 0:02:36]} 2. Nf3 {[%emt 0:00:13]} Nc6 {[%emt 0:00:06]} 3. Bb5 {[%emt 0:00:06]} a6 {[%emt 0:00:04]} 4. Ba4 {[%emt 0:00:06]} Nf6 {[%emt 0:00:11]} 5. O-O {[%emt 0:00:09]} Be7 {[%emt 0:00:57]} 6. Re1 {[%emt 0:00:18]} b5 {[%emt 0:00:42]} 7. Bb3 {[%emt 0:00:03]} d6 {[%emt 0:00:08]} 8. c3 {[%emt 0:00:05]} O-O {[%emt 0:00:28]} 9. d4 {[%emt 0:00:07]} Bg4 {[%emt 0:02:31]} 10. d5 {[%emt 0:00:07]} Na5 {[%emt 0:00:12]} 11. Bc2 {[%emt 0:00:01]} Qc8 {[%emt 0:00:29]} 12. h3 {[%emt 0:00:17]} Bd7 {[%emt 0:00:10]} 13. Nbd2 {[%emt 0:00:14]} c6 {[%emt 0:00:33]} 14. dxc6 {[%emt 0:00:10]} Qxc6 {[%emt 0:00:12]} 15. Nf1 {[%emt 0:00:18]} Rfc8 {[%emt 0:00:06]} 16. Ne3 {[%emt 0:05:14]} Qc7 {[%emt 0:10:02]} 17. Nd5 {[%emt 0:11:11]} Nxd5 {[%emt 0:00:41]} 18. exd5 {[%emt 0:00:02]} Qd8 {[%emt 0:17:55]} 19. Nh2 {[%emt 0:02:19]} f5 {[%emt 0:01:50]} 20. f4 {[%emt 0:05:40]} e4 {[%emt 0:04:24]} 21. g4 {[%emt 0:03:57]} Bh4 {[%emt 0:03:08]} 22. Re2 {[%emt 0:01:17]} Qf6 {[%emt 0:05:03]} 23. Rg2 {[%emt 0:21:52]} Qf7 {[%emt 0:12:17]} 24. Nf1 {[%emt 0:12:35]} Nb7 {[%emt 0:15:17]} 25. Be3 {[%emt 0:05:51]} Nc5 {[%emt 0:03:58]} 26. Qd2 {[%emt 0:06:05]} a5 {[%emt 0:06:43]} 27. Rd1 {[%emt 0:03:13]} Rc7 {[%emt 0:00:37]} 28. a3 {[%emt 0:04:13]} Re8 {[%emt 0:01:00]} 29. g5 {[%emt 0:00:44]} Nd3 {[%emt 0:02:02]} 30. Bxd3 {[%emt 0:00:40]} exd3 {[%emt 0:00:04]} 31. Qxd3 {[%emt 0:00:01]} Qh5 {[%emt 0:01:02]} 32. Bb6 {[%emt 0:01:47]} Rc4 {[%emt 0:00:37]} 33. Bd4 {[%emt 0:00:23]} Re4 {[%emt 0:01:14]} 34. Be3 {[%emt 0:05:48]} Rc8 {[%emt 0:02:36]} 35. Bc1 {[%emt 0:06:58]} Rce8 {[%emt 0:00:34]} 36. Kh2 {[%emt 0:00:45]} Re2 {[%emt 0:01:49]} 37. Ne3 {[%emt 0:00:21]} Rxg2+ {[%emt 0:01:11]} 38. Kxg2 {[%emt 0:00:04]} Re4 {[%emt 0:00:50]} 39. Rf1 {[%emt 0:00:42]} h6 {[%emt 0:00:55]} 40. Qd1 {[%emt 0:02:02]} Qe8 {[%emt 0:00:45]} 41. Qf3 {[%emt 0:00:01]} hxg5 {[%emt 0:00:33]} 42. fxg5 {[%emt 0:00:01]} g6 {[%emt 0:00:45]} 43. Kh1 {[%emt 0:01:20]} Bxg5 {[%emt 0:00:54]} 44. Nxf5 {[%emt 0:00:10]} Bxf5 {[%emt 0:00:52]} 45. Bxg5 {[%emt 0:00:02]} Rh4 {[%emt 0:01:41]} 0-1